fUST/lending_fUST_20250824
["ID","MTS","AMOUNT","RATE_DAILY","PERIOD"]
[381088391,1756025440486,-200.13064809,0.00039998,30]
[381088392,1756025440495,-151.0,0.00039998,30]
[381088393,1756025440504,-21396.85944216,0.00039998,30]
[381088394,1756025440701,-151.0,0.00039998,30]
[381088395,1756025440712,-1877.60920351,0.00039998,30]
[381088396,1756025440722,-300.0,0.00039998,30]
[381088397,1756025440731,-22188.54324152,0.00039998,30]
[381088398,1756025440741,-151.0,0.00039998,30]
[381088399,1756025440751,-356.50235063,0.00039998,30]
[381088400,1756025440761,-151.0,0.00039998,30]
[381088401,1756025440770,-21580.95511853,0.00039998,30]
[381088402,1756025440779,-151.0,0.00039998,30]
[381088403,1756025440789,-151.0,0.00039998,30]
[381088404,1756025440799,-151.0,0.00039998,30]
[381088405,1756025440808,-250.0,0.00039998,30]
[381088406,1756025440818,-250.0,0.00039998,30]
[381088407,1756025440828,-250.0,0.00039998,30]
[381088408,1756025440838,-168.3888056,0.00039998,30]
[381088409,1756025440847,-174.61919141,0.00039998,30]
[381088410,1756025440857,-250.0,0.00039998,30]
[381088411,1756025440866,-181.08010149,0.00039998,30]
[381088412,1756025440876,-250.0,0.00039998,30]
[381088413,1756025440886,-187.78006525,0.00039998,30]
[381088414,1756025440896,-250.0,0.00039998,30]
[381088415,1756025440905,-242.60564905,0.00039998,30]
[381088416,1756025440915,-250.0,0.00039998,30]
[381088417,1756025440929,-250.0,0.00039998,30]
[381088418,1756025440939,-250.0,0.00039998,30]
[381088419,1756025440948,-158.002528,0.00039998,30]
[381088420,1756025440957,-250.0,0.00039998,30]
[381088421,1756025440969,-505.516358,0.00039998,30]
[381088422,1756025440978,-151.0,0.00039998,30]
[381088423,1756025440988,-250.0,0.00039998,30]
[381088424,1756025440999,-158.002528,0.00039998,30]
[381088425,1756025441008,-250.0,0.00039998,30]
[381088426,1756025441018,-151.0,0.00039998,30]
[381088427,1756025441028,-250.0,0.00039998,30]
[381088428,1756025441038,-158.002528,0.00039998,30]
[381088429,1756025441049,-505.516358,0.00039998,30]
[381088430,1756025441059,-250.0,0.00039998,30]
[381088431,1756025441067,-151.0,0.00039998,30]
[381088432,1756025441077,-250.0,0.00039998,30]
[381088433,1756025441087,-158.002528,0.00039998,30]
[381088434,1756025441096,-250.0,0.00039998,30]
[381088435,1756025441106,-505.516358,0.00039998,30]
[381088436,1756025441116,-151.0,0.00039998,30]
[381088437,1756025441125,-275.21884075,0.00039998,30]
[381088438,1756025441134,-505.516358,0.00039998,30]
[381088439,1756025441143,-151.0,0.00039998,30]
[381088440,1756025441153,-202.20021287,0.00039999,30]
[381088441,1756025441163,-190861.16942028,0.0004,30]
[381088442,1756025441172,-500.0,0.0004,2]
[381088443,1756025441181,-359622.87039755,0.0004,30]
[381088444,1756025441191,-387.28,0.0004,14]
[381088445,1756025441200,-5983.45891074,0.0004,14]
[381088446,1756025441548,-232.42214577,0.00039998,30]
[381088447,1756025441558,-151.0,0.00039998,30]
[381088448,1756025441569,-689.89108926,0.0004,14]
[381088449,1756025441582,-151.86,0.0004,7]
[381088450,1756025441592,-151.0,0.0004,13]
[381088451,1756025441601,-151.0,0.0004,16]
[381088452,1756025441610,-151.0,0.0004,16]
[381088453,1756025441619,-151.0,0.0004,20]
[381088454,1756025441627,-151.0,0.0004,14]
[381088455,1756025441637,-151.0,0.0004,14]
[381088456,1756025441646,-151.0,0.0004,30]
[381088457,1756025441656,-151.0,0.0004,30]
[381088458,1756025441665,-151.0,0.0004,30]
[381088459,1756025441675,-151.0,0.0004,30]
[381088460,1756025441684,-151.0,0.0004,30]
[381088461,1756025441693,-151.0,0.0004,30]
[381088462,1756025441703,-151.0,0.0004,30]
[381088463,1756025441712,-151.0,0.0004,30]
[381088464,1756025441721,-151.0,0.0004,30]
[381088465,1756025441730,-151.0,0.0004,30]
[381088466,1756025441739,-181.781199,0.0004,30]
[381088467,1756025441748,-151.0,0.0004,30]
[381088468,1756025441757,-151.0,0.0004,30]
[381088469,1756025441766,-151.0,0.0004,30]
[381088470,1756025441775,-127.84751917,0.0004,30]
[381088471,1756025442098,-23.15248083,0.0004,30]
[381088472,1756025442108,-151.0,0.0004,30]
[381088473,1756025442118,-151.0,0.0004,30]
[381088474,1756025442127,-151.0,0.0004,30]
[381088475,1756025442137,-256.037123,0.0004,30]
[381088476,1756025442147,-151.0,0.0004,30]
[381088477,1756025442157,-151.0,0.0004,30]
[381088478,1756025442166,-151.0,0.0004,30]
[381088479,1756025442176,-151.0,0.0004,30]
[381088480,1756025442185,-151.0,0.0004,30]
[381088481,1756025442195,-151.0,0.0004,30]
[381088482,1756025442204,-15.38460669,0.0004,30]
[381088483,1756025442216,-135.61539331,0.0004,30]
[381088484,1756025442225,-151.0,0.0004,30]
[381088485,1756025442235,-195.767788,0.0004,30]
[381088486,1756025442244,-151.0,0.0004,30]
[381088487,1756025442255,-151.0,0.0004,30]
[381088488,1756025442265,-151.0,0.0004,30]
[381088489,1756025442275,-151.0,0.0004,30]
[381088490,1756025442285,-151.0,0.0004,30]
[381088492,1756025442294,-151.0,0.0004,30]
[381088493,1756025442304,-151.0,0.0004,30]
[381088494,1756025442313,-151.0,0.0004,30]
[381088495,1756025442324,-169.55017,0.0004,30]
[381088496,1756025442335,-151.0,0.0004,30]
[381088497,1756025442344,-151.0,0.0004,30]
[381088498,1756025442354,-151.0,0.0004,30]
[381088499,1756025442363,-151.0,0.0004,30]
[381088500,1756025442372,-151.0,0.0004,30]
[381088501,1756025442382,-151.0,0.0004,30]
[381088502,1756025442392,-154.306594,0.0004,30]
[381088504,1756025442401,-151.0,0.0004,30]
[381088506,1756025442410,-151.0,0.0004,30]
[381088508,1756025442420,-151.0,0.0004,30]
[381088509,1756025442429,-151.0,0.0004,30]
[381088510,1756025442438,-151.0,0.0004,30]
[381088511,1756025442447,-151.0,0.0004,30]
[381088512,1756025442456,-151.0,0.0004,30]
[381088513,1756025442466,-151.0,0.0004,30]
[381088514,1756025442475,-151.0,0.0004,30]
[381088515,1756025442484,-151.0,0.0004,30]
[381088516,1756025442494,-151.0,0.0004,30]
[381088517,1756025442503,-151.0,0.0004,30]
[381088518,1756025442512,-151.0,0.0004,30]
[381088519,1756025442521,-151.0,0.0004,30]
[381088520,1756025442531,-151.0,0.0004,30]
[381088521,1756025442540,-151.0,0.0004,30]
[381088522,1756025442549,-151.0,0.0004,30]
[381088523,1756025442559,-151.0,0.0004,30]
[381088524,1756025442568,-151.0,0.0004,30]
[381088525,1756025442577,-151.0,0.0004,30]
[381088526,1756025442586,-159.10336,0.0004,30]
[381088527,1756025442596,-159.10336,0.0004,30]
[381088528,1756025442605,-151.0,0.0004,30]
[381088529,1756025442615,-151.0,0.0004,30]
[381088530,1756025442624,-159.10336,0.0004,30]
[381088531,1756025442634,-159.10336,0.0004,30]
[381088533,1756025442643,-159.10336,0.0004,30]
[381088534,1756025442652,-159.10336,0.0004,30]
[381088535,1756025442662,-151.0,0.0004,30]
[381088536,1756025442671,-159.10336,0.0004,30]
[381088537,1756025442681,-151.0,0.0004,30]
[381088538,1756025442691,-159.10336,0.0004,30]
[381088539,1756025442701,-151.0,0.0004,30]
[381088540,1756025442711,-151.0,0.0004,30]
[381088541,1756025442720,-151.0,0.0004,30]
[381088542,1756025442730,-151.0,0.0004,30]
[381088543,1756025442739,-151.0,0.0004,30]
[381088544,1756025442749,-151.0,0.0004,30]
[381088545,1756025442759,-370.0491,0.0004,30]
[381088547,1756025442770,-370.0491,0.0004,30]
[381088549,1756025442779,-370.0491,0.0004,30]
[381088553,1756025442844,-370.0491,0.0004,30]
[381088554,1756025442854,-370.0491,0.0004,30]
[381088555,1756025442863,-370.0491,0.0004,30]
[381088556,1756025442872,-370.0491,0.0004,30]
[381088557,1756025442881,-370.0491,0.0004,30]
[381088558,1756025442891,-151.0,0.0004,30]
[381088559,1756025442899,-151.0,0.0004,30]
[381088560,1756025442908,-151.0,0.0004,30]
[381088561,1756025442917,-151.0,0.0004,30]
[381088562,1756025442929,-151.0,0.0004,30]
[381088563,1756025442939,-199.927657,0.0004,30]
[381088564,1756025442947,-298.152038,0.0004,30]
[381088565,1756025442957,-298.152038,0.0004,30]
[381088566,1756025442967,-357.855896,0.0004,30]
[381088567,1756025442976,-357.855896,0.0004,30]
[381088568,1756025442985,-158.250224,0.0004,30]
[381088569,1756025442994,-298.152038,0.0004,30]
[381088570,1756025443004,-158.250224,0.0004,30]
[381088571,1756025443014,-298.152038,0.0004,30]
[381088572,1756025443023,-357.855896,0.0004,30]
[381088573,1756025443032,-357.855896,0.0004,30]
[381088574,1756025443040,-298.152038,0.0004,30]
[381088575,1756025443050,-298.152038,0.0004,30]
[381088576,1756025443059,-357.855896,0.0004,30]
[381088577,1756025443069,-357.855896,0.0004,30]
[381088578,1756025443078,-298.152038,0.0004,30]
[381088579,1756025443087,-158.250224,0.0004,30]
[381088580,1756025443096,-357.855896,0.0004,30]
[381088581,1756025443106,-158.250224,0.0004,30]
[381088582,1756025443115,-357.855896,0.0004,30]
[381088583,1756025443124,-298.152038,0.0004,30]
[381088584,1756025443133,-158.250224,0.0004,30]
[381088586,1756025443142,-158.250224,0.0004,30]
[381088588,1756025443151,-158.250224,0.0004,30]
[381088590,1756025443159,-158.250224,0.0004,30]
[381088592,1756025443168,-156.248367,0.0004,30]
[381088593,1756025443177,-291.359217,0.0004,30]
[381088594,1756025443186,-291.359217,0.0004,30]
[381088595,1756025443195,-291.359217,0.0004,30]
[381088596,1756025443205,-291.359217,0.0004,30]
[381088597,1756025443214,-291.359217,0.0004,30]
[381088598,1756025443222,-291.359217,0.0004,30]
[381088599,1756025443231,-291.359217,0.0004,30]
[381088600,1756025443241,-291.359217,0.0004,30]
[381088601,1756025443250,-585.072786,0.0004,30]
[381088602,1756025443259,-585.072786,0.0004,30]
[381088603,1756025443269,-203.31933,0.0004,30]
[381088604,1756025443278,-585.072786,0.0004,30]
[381088605,1756025443287,-203.31933,0.0004,30]
[381088606,1756025443296,-585.072786,0.0004,30]
[381088607,1756025443306,-203.31933,0.0004,30]
[381088608,1756025443315,-203.31933,0.0004,30]
[381088609,1756025443324,-585.072786,0.0004,30]
[381088610,1756025443333,-585.072786,0.0004,30]
[381088611,1756025443342,-203.31933,0.0004,30]
[381088612,1756025443351,-585.072786,0.0004,30]
[381088613,1756025443361,-203.31933,0.0004,30]
[381088614,1756025443370,-585.072786,0.0004,30]
[381088615,1756025443379,-203.31933,0.0004,30]
[381088616,1756025443388,-203.31933,0.0004,30]
[381088617,1756025443398,-151.0,0.0004,30]
[381088618,1756025443407,-151.0,0.0004,30]
[381088619,1756025443417,-272.95388,0.0004,30]
[381088620,1756025443426,-200.0,0.0004,120]
[381088621,1756025443435,-151.0,0.0004,30]
[381088622,1756025443444,-151.0,0.0004,30]
[381088623,1756025443454,-151.0,0.0004,30]
[381088624,1756025443463,-151.0,0.0004,30]
[381088625,1756025443472,-151.0,0.0004,30]
[381088626,1756025443481,-151.0,0.0004,30]
[381088627,1756025443491,-151.0,0.0004,30]
[381088628,1756025443500,-151.0,0.0004,30]
[381088629,1756025443509,-151.0,0.0004,30]
[381088630,1756025443518,-151.0,0.0004,30]
[381088631,1756025443527,-151.0,0.0004,30]
[381088632,1756025443536,-151.0,0.0004,30]
[381088633,1756025443546,-151.0,0.0004,30]
[381088634,1756025443555,-167.541437,0.0004,30]
[381088635,1756025443563,-151.0,0.0004,30]
[381088636,1756025443573,-167.541437,0.0004,30]
[381088637,1756025443582,-167.541437,0.0004,30]
[381088638,1756025443592,-167.541437,0.0004,30]
[381088639,1756025443601,-167.541437,0.0004,30]
[381088640,1756025443610,-167.541437,0.0004,30]
[381088641,1756025443620,-167.541437,0.0004,30]
[381088642,1756025443629,-167.541437,0.0004,30]
[381088643,1756025443639,-151.0,0.0004,30]
[381088644,1756025443648,-151.0,0.0004,30]
[381088645,1756025443657,-151.0,0.0004,30]
[381088646,1756025443667,-151.0,0.0004,30]
[381088647,1756025443677,-158.002528,0.0004,30]
[381088648,1756025443686,-158.002528,0.0004,30]
[381088649,1756025443696,-505.516358,0.0004,30]
[381088650,1756025443705,-505.516358,0.0004,30]
[381088651,1756025443714,-158.002528,0.0004,30]
[381088652,1756025443723,-151.0,0.0004,30]
[381088653,1756025443732,-158.002528,0.0004,30]
[381088654,1756025443741,-151.0,0.0004,30]
[381088655,1756025443750,-151.0,0.0004,30]
[381088656,1756025443760,-151.0,0.0004,30]
[381088657,1756025443769,-158.002528,0.0004,30]
[381088658,1756025443779,-505.516358,0.0004,30]
[381088659,1756025443789,-158.002528,0.0004,30]
[381088660,1756025443799,-505.516358,0.0004,30]
[381088661,1756025443809,-151.0,0.0004,30]
[381088662,1756025443818,-151.0,0.0004,30]
[381088663,1756025443827,-505.516358,0.0004,30]
[381088664,1756025443837,-158.002528,0.0004,30]
[381088665,1756025443846,-505.516358,0.0004,30]
[381088666,1756025443855,-158.002528,0.0004,30]
[381088667,1756025443864,-151.0,0.0004,30]
[381088668,1756025443874,-151.0,0.0004,30]
[381088669,1756025443883,-505.516358,0.0004,30]
[381088670,1756025443894,-505.516358,0.0004,30]
[381088671,1756025443906,-151.0,0.0004,30]
[381088672,1756025443915,-151.0,0.0004,30]
[381088673,1756025443926,-151.0,0.0004,30]
[381088674,1756025443936,-151.0,0.00040083,15]
[381088675,1756025443945,-1391.74235736,0.00040083,15]
[381088676,1756025443959,-994.14261618,0.00040083,15]
[381088677,1756025443971,-703.11502646,0.00040083,15]
[381088678,1756025443980,-151.0,0.00040098,2]
[381088679,1756025443990,-294.186276,0.00040164,30]
[381088680,1756025444000,-4041.85533339,0.000402,120]
[381088681,1756025444342,-509.0508109,0.00039096,30]
[381088682,1756025444351,-26.9407759,0.00039479,30]
[381088683,1756025444363,-360.1822608,0.00039479,30]
[381088684,1756025444372,-151.0,0.00039998,30]
[381088685,1756025444381,-151.0,0.0004,30]
[381088686,1756025444390,-151.0,0.0004,30]
[381088687,1756025444399,-151.0,0.0004,30]
[381088688,1756025444408,-958.14466661,0.000402,120]
[381088689,1756025444418,-387.1230367,0.00040219,30]
[381088690,1756025444428,-387.1230367,0.00040219,30]
[381088691,1756025444437,-387.1230367,0.00040219,30]
[381088692,1756025444446,-500.0,0.00040321,5]
[381088693,1756025444456,-1000.0,0.00040321,5]
[381088694,1756025444465,-1000.0,0.00040321,5]
[381088695,1756025444475,-500.0,0.00040321,5]
[381088696,1756025444485,-151.0,0.00040357,15]
[381088697,1756025444494,-3089.0,0.00040357,15]
[381088698,1756025444503,-198.0,0.00040372,2]
[381088699,1756025444514,-169.58929109,0.00040421,5]
[381088700,1756025444523,-1001.1754658,0.00040421,5]
[381088701,1756025444533,-1014.21672685,0.00040421,5]
[381088702,1756025444542,-269.32248775,0.00040438,30]
[381088703,1756025444554,-117.80054895,0.00040438,30]
[381088704,1756025444564,-647.0,0.000405,30]
[381088705,1756025444574,-168.0,0.00040504,2]
[381088706,1756025444583,-1000.0,0.00040521,5]
[381088707,1756025444593,-1007.41050581,0.00040521,5]
[381088708,1756025444603,-1000.0,0.0004055,120]
[381088709,1756025444613,-525.26715394,0.00040569,15]
[381088710,1756025444622,-151.0,0.00040631,15]
[381088711,1756025444631,-3089.0,0.00040631,15]
[381088712,1756025444641,-161.0055628,0.00040904,30]
[381088713,1756025444650,-153.0,0.00040904,30]
[381088714,1756025444659,-294.186276,0.00040904,30]
[381088715,1756025444671,-306.0,0.00040904,30]
[381088716,1756025444680,-294.186276,0.00040904,30]
[381088717,1756025444689,-4.31589824,0.00040904,30]
[381088723,1756025446078,-148.68410176,0.00040904,30]
[381088724,1756025446088,-161.0055628,0.00040904,30]
[381088725,1756025446098,-122.48794425,0.00040904,30]
[381088727,1756025522235,203.7,0.00024,2]
[381088728,1756025565985,3860.43143827,0.00025001,2]
[381088729,1756025597302,160.484735,0.00013699,2]
[381088730,1756025601849,664.6395624,0.000199,2]
[381088731,1756025602202,664.63956216,0.00021627,2]
[381088732,1756025602931,664.63956216,0.00023353,2]
[381088733,1756025734533,160.0,0.0002,7]
[381088734,1756025751486,475.41505624,0.0002495,2]
[381088735,1756025759738,5000.0,0.00025001,2]
[381088736,1756025769793,658.89664556,0.000199,2]
[381088737,1756025769996,658.89664544,0.00021627,2]
[381088738,1756025770558,658.89664544,0.00023353,2]
[381088739,1756025936544,663.14786481,0.00021627,2]
[381088740,1756025936899,663.14786481,0.00023353,2]
[381088741,1756025937257,663.14786501,0.000199,2]
[381088743,1756026103720,596.83307859,0.000199,2]
[381088744,1756026103809,596.83307832,0.00021627,2]
[381088745,1756026104424,596.83307832,0.00023353,2]
[381088748,1756026187935,158.0,0.00025,2]
[381088749,1756026188845,158.0,0.00025,2]
[381088750,1756026196134,158.0,0.00025,3]
[381088751,1756026197078,158.0,0.00025,3]
[381088752,1756026199824,91.48308835,0.00025,2]
[381088753,1756026199846,66.51691165,0.00025,2]
[381088763,1756026272831,537.05965457,0.000199,2]
[381088764,1756026273084,537.05965443,0.00023353,2]
[381088765,1756026273603,537.05965443,0.00021627,2]
[381088769,1756026418091,-537.05965443,0.0002508,2]
[381088770,1756026418113,-311.22259683,0.00025722,2]
[381088771,1756026440509,481.43560105,0.000199,2]
[381088772,1756026440665,481.43560092,0.00021627,2]
[381088773,1756026440820,481.43560092,0.00023353,2]
[381088774,1756026445092,-481.43560092,0.0002508,2]
[381088775,1756026445112,-172.3145046,0.00025678,2]
[381088776,1756026445132,-6507.63268127,0.00025722,2]
[381088777,1756026445151,-237.70752812,0.00025778,2]
[381088778,1756026445170,-1200.0,0.00026571,2]
[381088779,1756026445190,-163.69977571,0.00026572,2]
[381088780,1756026519044,164.628819,0.00013699,2]
[381088781,1756026612771,417.24418758,0.000199,2]
[381088782,1756026612966,417.24418746,0.00023353,2]
[381088783,1756026613348,417.24418746,0.00021627,2]
[381088789,1756026632172,-417.24418746,0.0002508,2]
[381088790,1756026632182,-297.14258606,0.000253,2]
[381088791,1756026632193,-152.71741394,0.000253,2]
[381088792,1756026632202,-363.85958723,0.000253,2]
[381088793,1756026632226,-339.22385316,0.000253,2]
[381088794,1756026632236,-1200.0,0.00026594,2]
[381088796,1756026632245,-300.0,0.00026595,2]
[381088797,1756026632254,-300.0,0.00026595,2]
[381088798,1756026632263,-300.0,0.00026595,2]
[381088799,1756026632273,-300.0,0.00026595,2]
[381088800,1756026632282,-300.0,0.00026595,2]
[381088801,1756026632291,-500.0,0.00026673,2]
[381088802,1756026632301,-500.0,0.00026673,2]
[381088803,1756026632312,-500.0,0.00026673,2]
[381088804,1756026632322,-500.0,0.00026673,2]
[381088805,1756026632330,-500.0,0.00026673,2]
[381088807,1756026632339,-500.0,0.00026673,2]
[381088809,1756026632349,-500.50738808,0.00026673,2]
[381088811,1756026632359,-339.80844007,0.00026673,2]
[381088813,1756026632367,-500.0,0.00026673,2]
[381088815,1756026632378,-500.86415045,0.00026673,2]
[381088816,1756026632388,-501.60509658,0.00026673,2]
[381088817,1756026632397,-500.92331875,0.00026673,2]
[381088818,1756026632405,-500.43555431,0.00026673,2]
[381088819,1756026632415,-500.0,0.00026673,2]
[381088820,1756026632424,-500.0,0.00026673,2]
[381088821,1756026632433,-500.0,0.00026673,2]
[381088822,1756026632443,-500.0,0.00026673,2]
[381088823,1756026632452,-503.50697142,0.00026673,2]
[381088824,1756026632461,-500.0,0.00026673,2]
[381088825,1756026632480,-500.0,0.00026673,2]
[381088826,1756026632489,-500.0,0.00026673,2]
[381088827,1756026632498,-11803.02849475,0.00026673,2]
[381088839,1756026638123,-38196.97150525,0.00026673,2]
[381088840,1756026638133,-160.0,0.00026688,2]
[381088841,1756026638143,-160.0,0.0002669,2]
[381088842,1756026638153,-179.33548377,0.0002669,2]
[381088843,1756026638162,-543.39422978,0.00026692,2]
[381088844,1756026638171,-178.04334676,0.00026692,2]
[381088845,1756026638181,-500.0,0.00026692,2]
[381088846,1756026638190,-500.0,0.00026692,2]
[381088847,1756026638200,-500.0,0.00026692,2]
[381088848,1756026638209,-500.0,0.00026692,2]
[381088849,1756026638219,-500.0,0.00026692,2]
[381088850,1756026638228,-500.0,0.00026692,2]
[381088851,1756026638238,-500.0,0.00026692,2]
[381088852,1756026638248,-500.0,0.00026692,2]
[381088853,1756026638257,-500.0,0.00026692,2]
[381088854,1756026638266,-500.0,0.00026692,2]
[381088855,1756026638275,-257.90086151,0.00026692,2]
[381088856,1756026638285,-500.0,0.00026692,2]
[381088857,1756026638294,-500.0,0.00026692,2]
[381088858,1756026638309,-500.0,0.00026692,2]
[381088859,1756026638321,-211.38143039,0.00026692,2]
[381088860,1756026638330,-500.0,0.00026692,2]
[381088861,1756026638341,-500.0,0.00026692,2]
[381088862,1756026638351,-500.0,0.00026693,2]
[381088863,1756026638361,-226.799,0.000267,14]
[381088864,1756026638371,-1343.17555622,0.00026706,2]
[381088865,1756026638380,-39011.089213,0.00026706,2]
[381088866,1756026638390,-500.70966073,0.00026773,2]
[381088867,1756026638401,-500.0,0.00026773,2]
[381088868,1756026638410,-501.15104707,0.00026773,2]
[381088869,1756026638420,-500.63169152,0.00026773,2]
[381088870,1756026638430,-500.0,0.00026773,2]
[381088871,1756026638439,-502.14782863,0.00026773,2]
[381088872,1756026638449,-500.63181945,0.00026773,2]
[381088873,1756026638458,-500.0,0.00026773,2]
[381088874,1756026638467,-500.0,0.00026773,2]
[381088875,1756026638477,-500.0,0.00026773,2]
[381088876,1756026638486,-501.63845286,0.00026773,2]
[381088877,1756026638496,-501.28334109,0.00026773,2]
[381088878,1756026638505,-500.0,0.00026773,2]
[381088879,1756026638514,-500.0,0.00026773,2]
[381088880,1756026638523,-500.0,0.00026773,2]
[381088881,1756026638532,-500.00392088,0.00026773,2]
[381088882,1756026638542,-520.92936452,0.00026773,2]
[381088883,1756026638551,-501.02341132,0.00026773,2]
[381088884,1756026638560,-501.20441904,0.00026773,2]
[381088885,1756026638569,-500.0,0.00026773,2]
[381088886,1756026638579,-259.38826212,0.00026773,2]
[381088887,1756026638589,-181.61775622,0.00026773,2]
[381088888,1756026638600,-500.0,0.00026773,2]
[381088889,1756026638609,-453.02774976,0.00026773,2]
[381088890,1756026638618,-500.0,0.00026773,2]
[381088891,1756026638627,-500.0,0.00026773,2]
[381088892,1756026638637,-500.0,0.00026773,2]
[381088893,1756026638646,-500.97657342,0.00026773,2]
[381088894,1756026638656,-158.39614948,0.00026773,2]
[381088895,1756026638665,-517.6295414,0.00026773,2]
[381088896,1756026638674,-417.24418746,0.00026806,6]
[381088897,1756026638683,-500.0,0.00026967,2]
[381088898,1756026638693,-1000.0,0.00027221,2]
[381088899,1756026638702,-501.69540438,0.00027221,2]
[381088900,1756026638712,-1000.0,0.00027221,2]
[381088901,1756026638723,-1000.0,0.00027221,2]
[381088902,1756026638732,-500.0,0.00027241,2]
[381088903,1756026638741,-501.15952311,0.00027321,2]
[381088904,1756026638750,-1000.0,0.00027321,2]
[381088905,1756026638759,-500.0,0.00027321,2]
[381088906,1756026638768,-500.0,0.00027515,2]
[381088907,1756026638777,-1466.33338251,0.00027768,5]
[381088908,1756026638787,-500.0,0.00027768,5]
[381088909,1756026638796,-1500.0,0.00027868,5]
[381088910,1756026638805,-500.0,0.00028416,5]
[381088911,1756026638815,-417.24418746,0.00028533,10]
[381088912,1756026638824,-410.0,0.00028739,2]
[381088913,1756026638833,-420.0,0.00028764,2]
[381088914,1756026638843,-161.0,0.00028764,2]
[381088915,1756026638853,-1680.0,0.00028891,2]
[381088916,1756026638862,-215.99145658,0.00028926,2]
[381088917,1756026638872,-217.07852671,0.00028957,2]
[381088918,1756026638883,-582.43497649,0.00029024,2]
[381088919,1756026638892,-158.0,0.000296,30]
[381088920,1756026638901,-417.24418746,0.00030259,13]
[381088921,1756026638910,-587.0,0.0003111,2]
[381088922,1756026638920,-205.0,0.00031386,3]
[381088923,1756026638929,-417.24418746,0.00031986,17]
[381088924,1756026638938,-160.0,0.00032675,2]
[381088925,1756026638948,-5140.2798447,0.00032866,2]
[381088926,1756026638957,-1426.02,0.00032876,120]
[381088927,1756026638972,-204.00549098,0.00033134,2]
[381088928,1756026638984,-260.0,0.00033223,2]
[381088929,1756026638993,-417.24418746,0.00033712,21]
[381088930,1756026639003,-1426.02,0.00034246,120]
[381088931,1756026639013,-716.004299,0.00034313,2]
[381088932,1756026639022,-1899.95716376,0.00034394,2]
[381088933,1756026639031,-417.24418746,0.00035439,24]
[381088934,1756026639040,-1426.02,0.00035616,120]
[381088935,1756026639050,-1426.02,0.00036986,120]
[381088936,1756026639059,-408.0,0.00037045,2]
[381088937,1756026639068,-417.24418746,0.00037166,28]
[381088938,1756026639078,-156.686347,0.00037299,2]
[381088939,1756026639087,-163.0,0.00038,44]
[381088940,1756026639097,-156.686347,0.00038167,7]
[381088941,1756026639106,-1899.95716376,0.00038293,2]
[381088942,1756026639117,-156.686347,0.00038356,20]
[381088943,1756026639136,-1426.02,0.00038356,120]
[381088944,1756026639145,-246.942,0.00038387,2]
[381088945,1756026639155,-219.21,0.00038387,2]
[381088946,1756026639165,-417.24418746,0.00038892,32]
[381088947,1756026639174,-496.0,0.0003955,120]